bitfinex/quotes_BTCUSD_20220307
["timestamp","ask_amount","ask_price","bid_price","bid_amount"]
[1646675340420,0.0515,38885.0,38877.0,0.06431726]
[1646675340611,0.35016,38893.0,38878.0,0.3]
[1646675340612,0.20016,38893.0,38878.0,0.3]
[1646675340814,0.03862,38895.0,38878.0,0.4]
[1646675341057,0.34064374,38898.0,38880.0,0.18222708]
[1646675341058,0.2176543,38887.0,38880.0,0.18222708]
[1646675341257,0.2176543,38887.0,38878.0,0.4]
[1646675341459,0.2176543,38887.0,38878.0,0.1]
[1646675341661,0.2176543,38887.0,38878.0,0.10017253]
[1646675341857,0.2176543,38887.0,38878.0,0.05017253]
[1646675342057,0.2176543,38887.0,38878.0,0.00017253]
[1646675342261,0.2176543,38887.0,38880.0,0.25146211]
[1646675342457,0.2176543,38887.0,38880.0,0.30146211]
[1646675342858,0.00025995,38885.0,38880.0,0.30146211]
[1646675343258,0.00025995,38885.0,38880.0,0.1]
[1646675343459,0.00025995,38885.0,38880.0,0.05]
[1646675343660,0.2176543,38887.0,38880.0,0.05]
[1646675343858,0.2176543,38887.0,38881.0,0.05]
[1646675344060,0.00025995,38885.0,38881.0,0.05]
[1646675344263,0.00025995,38885.0,38879.0,0.05]
[1646675344459,0.00025995,38885.0,38880.0,0.128622]
[1646675344660,0.00025995,38885.0,38880.0,0.178622]
[1646675344910,0.2176543,38887.0,38881.0,0.05]
[1646675345111,0.00025995,38885.0,38881.0,0.05]
[1646675346013,0.2176543,38887.0,38881.0,0.05]
[1646675346212,0.002,38885.0,38881.0,0.05]
[1646675346514,0.61829577,38884.0,38881.0,0.05]
[1646675346714,0.06658595,38885.0,38881.0,0.05]
[1646675347113,0.402022,38884.0,38881.0,0.05]
[1646675347312,0.002,38885.0,38881.0,0.11432]
[1646675347514,0.402022,38890.0,38881.0,0.11432]
[1646675347813,0.00025818,38885.0,38882.0,0.05]
[1646675348013,0.00025818,38885.0,38882.0,0.03]
[1646675348220,0.00025818,38885.0,38883.0,0.752022]
[1646675348416,0.164551,38898.0,38886.0,0.402022]
[1646675348417,0.006101,38898.0,38886.0,0.402022]
[1646675348666,0.006101,38898.0,38895.0,0.402022]
[1646675348859,0.006101,38898.0,38894.0,0.2115619]
[1646675349057,0.006101,38898.0,38895.0,0.402022]
[1646675349258,0.006101,38898.0,38896.0,0.402022]
[1646675349460,0.006101,38898.0,38895.0,0.36428589]
[1646675349660,0.006101,38898.0,38896.0,0.05]
[1646675349857,0.006101,38898.0,38896.0,0.402022]
[1646675350257,0.006101,38898.0,38896.0,0.1]
[1646675350658,0.0029,38902.0,38895.0,0.05]
[1646675350857,0.0029,38902.0,38895.0,0.114288]
[1646675351059,0.0029,38902.0,38896.0,0.06428692]
[1646675351259,0.00024088,38899.0,38896.0,0.11428692]
[1646675351465,0.00024088,38899.0,38897.0,0.064287]
[1646675351962,0.0029,38902.0,38897.0,0.064287]
[1646675352302,0.00024088,38900.0,38897.0,0.064287]
[1646675353202,0.0029,38902.0,38897.0,0.064287]
[1646675353402,0.0029,38902.0,38896.0,0.228574]
[1646675353603,0.00024088,38900.0,38896.0,0.1]
[1646675353804,0.00024088,38900.0,38897.0,0.064291]
[1646675354004,0.00024088,38900.0,38896.0,0.15]
[1646675354208,0.00224088,38900.0,38896.0,0.1]
[1646675354510,0.002,38900.0,38894.0,0.53059]
[1646675354709,0.00225805,38900.0,38899.0,0.21748606]
[1646675355106,0.00225805,38900.0,38899.0,0.26748606]
[1646675355407,0.00025805,38900.0,38899.0,0.1]
[1646675355609,0.0029,38902.0,38899.0,0.05]
[1646675355808,0.0029,38902.0,38899.0,0.35]
[1646675356055,0.00025804,38901.0,38899.0,0.05]
[1646675356860,0.0039,38902.0,38899.0,0.05]
[1646675357060,0.00415804,38902.0,38899.0,0.05]
[1646675357559,0.00315804,38902.0,38899.0,0.05]
[1646675358158,0.0039,38902.0,38899.0,0.05]
[1646675358356,0.00415774,38902.0,38899.0,0.05]
[1646675358756,0.00415774,38902.0,38896.0,0.2]
[1646675359159,0.0039,38902.0,38897.0,0.064282]
[1646675359358,0.0022,38906.0,38905.0,0.3411755]
[1646675359562,0.16507136,38906.0,38905.0,0.3911755]
[1646675359805,0.56709336,38906.0,38905.0,0.3911755]
[1646675360205,0.57209336,38906.0,38905.0,0.3911755]
[1646675361506,0.56709336,38906.0,38905.0,0.3911755]
[1646675363111,0.16507136,38906.0,38905.0,0.3911755]
[1646675363309,0.56709336,38906.0,38905.0,0.3911755]
[1646675363564,0.16507136,38906.0,38905.0,0.3911755]
[1646675363968,0.0022,38906.0,38905.0,0.3911755]
[1646675364168,0.0062,38906.0,38905.0,0.3911755]
[1646675365168,0.0062,38906.0,38905.0,0.7931975]
[1646675365567,0.0022,38906.0,38905.0,0.3911755]
[1646675366168,0.0042,38906.0,38905.0,0.3911755]
[1646675366771,0.0042,38906.0,38905.0,0.6911755]
[1646675366971,0.0042,38906.0,38905.0,0.7931975]
[1646675367311,0.0042,38906.0,38905.0,0.3911755]
[1646675367510,0.00555763,38918.0,38907.0,0.02577]
[1646675367715,0.00555763,38918.0,38917.0,0.2225693]
[1646675367913,0.00195418,38923.0,38917.0,0.9907813]
[1646675368106,0.4203,38928.0,38919.0,1.4]
[1646675368306,0.0022,38928.0,38920.0,1.7]
[1646675368508,0.0022,38928.0,38920.0,1.828487]
[1646675368706,0.0022,38928.0,38927.0,0.19439052]
[1646675369107,0.0022,38928.0,38927.0,0.05]
[1646675369509,0.0022,38928.0,38923.0,0.12847039]
[1646675369711,0.0022,38928.0,38924.0,0.06424112]
[1646675369912,0.0022,38928.0,38923.0,0.05]
[1646675370111,0.1924009,38928.0,38923.0,0.17655889]
[1646675370310,0.1924009,38928.0,38923.0,0.22655889]
[1646675370515,1.214692,38925.0,38911.0,0.3512]
[1646675370715,0.07173718,38926.0,38910.0,0.128515]
[1646675370716,1.188922,38922.0,38910.0,0.128515]
[1646675370911,0.3,38921.0,38912.0,0.06426023]
[1646675371162,0.07173718,38926.0,38912.0,0.06426023]
[1646675371163,0.402022,38924.0,38912.0,0.06426023]
[1646675371460,0.18019172,38919.0,38914.0,0.064257]
[1646675371659,0.00027791,38918.0,38911.0,0.18845292]
[1646675372459,0.18019172,38919.0,38912.0,9e-05]
[1646675372657,0.18019172,38919.0,38914.0,0.06426]
[1646675372858,0.00025717,38916.0,38914.0,0.06426]
[1646675373458,0.16638422,38920.0,38914.0,0.06426]
[1646675373658,0.3,38924.0,38916.0,0.06425387]
[1646675373959,0.23110491,38922.0,38916.0,0.12850987]
[1646675374161,0.702022,38921.0,38915.0,2.5330296]
[1646675374359,0.19367971,38918.0,38914.0,0.05]
[1646675374559,0.3,38921.0,38914.0,0.05]
[1646675374809,0.19663641,38920.0,38914.0,0.05]
[1646675375410,0.23110491,38922.0,38915.0,0.06425517]
[1646675375714,0.15967956,38916.0,38914.0,0.05]
[1646675375915,0.702022,38915.0,38914.0,0.05]
[1646675376112,0.15967956,38916.0,38912.0,9e-05]
[1646675376312,0.402022,38922.0,38912.0,9e-05]
[1646675376511,0.0001037,38918.0,38912.0,9e-05]
[1646675376711,0.19411644,38918.0,38912.0,9e-05]
[1646675376911,0.0001037,38918.0,38912.0,0.06435048]
[1646675377313,0.1918021,38921.0,38913.0,0.2141624]
[1646675377520,0.00027797,38918.0,38913.0,0.2141624]
[1646675377715,0.00027797,38918.0,38914.0,9e-05]
[1646675377916,1.24281515,38917.0,38914.0,9e-05]
[1646675378572,0.402022,38917.0,38914.0,9e-05]
[1646675378767,0.402022,38915.0,38914.0,9e-05]
[1646675379569,1.30881115,38915.0,38914.0,9e-05]
[1646675379776,0.0473,38915.0,38914.0,9e-05]
[1646675379968,0.01284,38921.0,38914.0,9e-05]
[1646675380178,0.00027797,38918.0,38914.0,9e-05]
[1646675380371,0.00027797,38918.0,38915.0,0.402022]
[1646675380570,0.00027797,38918.0,38916.0,0.427792]
[1646675380769,0.00027797,38918.0,38917.0,0.05587448]
[1646675380969,0.0999,38922.0,38918.0,0.128481]
[1646675381168,0.0999,38922.0,38919.0,0.402022]
[1646675381373,0.1760131,38924.0,38919.0,0.05]
[1646675381571,0.00111166,38926.0,38920.0,0.402022]
[1646675381771,0.00111166,38926.0,38919.0,0.05]
[1646675382169,0.015,38927.0,38919.0,0.05]
[1646675382412,0.00026677,38924.0,38919.0,0.05]
[1646675382607,0.00026677,38924.0,38920.0,0.06424641]
[1646675382810,0.00026677,38924.0,38922.0,0.20747763]
[1646675383008,0.00026677,38924.0,38923.0,0.402022]
[1646675383408,0.015,38927.0,38923.0,0.402022]
[1646675383810,0.00026676,38925.0,38924.0,0.552022]
[1646675384208,0.00026676,38925.0,38924.0,0.60742429]
[1646675384411,0.0022,38935.0,38929.0,1.47577]
[1646675384611,0.0022,38935.0,38930.0,0.722332]
[1646675384810,0.0022,38935.0,38930.0,0.872332]
[1646675385009,0.00106687,38932.0,38930.0,1.03716487]
[1646675385210,0.00106687,38932.0,38931.0,0.3]
[1646675385412,0.00106687,38932.0,38931.0,0.97180933]
[1646675385611,0.00106687,38932.0,38931.0,1.01910933]
[1646675385810,0.0022,38935.0,38932.0,0.401781]
[1646675386065,0.0022,38935.0,38934.0,0.401781]
[1646675386466,0.0022,38935.0,38934.0,0.501781]
[1646675386664,0.0022,38935.0,38934.0,0.801781]
[1646675386864,0.0022,38935.0,38934.0,0.501781]
[1646675387167,0.0022,38935.0,38934.0,0.401781]
[1646675387364,0.0022,38935.0,38931.0,0.20972436]
[1646675387565,0.0022,38935.0,38932.0,0.401781]
[1646675388165,0.23508766,38934.0,38922.0,0.1451]
[1646675388365,0.23508766,38934.0,38928.0,0.00025875]
[1646675388564,0.21398947,38932.0,38928.0,0.00025875]
[1646675388964,0.0024587,38935.0,38929.0,0.401781]
[1646675389166,0.0024587,38935.0,38928.0,0.06449075]
[1646675389365,0.0011,38937.0,38935.0,0.0051761]
[1646675390028,0.20192304,38936.0,38935.0,0.0051761]
[1646675390424,0.20792304,38936.0,38935.0,0.0051761]
[1646675391227,0.18331451,38929.0,38928.0,0.00026744]
[1646675391435,0.58509551,38929.0,38928.0,0.00026744]
[1646675391628,1.41929551,38929.0,38928.0,0.00026744]
[1646675391825,1.41929551,38929.0,38921.0,0.6]
[1646675391826,0.63239551,38929.0,38921.0,0.6]
[1646675392028,0.05708747,38922.0,38921.0,0.6]
[1646675392226,0.27306655,38924.0,38916.0,0.16061973]
[1646675392227,0.21153547,38920.0,38916.0,0.16061973]
[1646675392526,0.21153547,38920.0,38916.0,0.003]
[1646675392527,0.20653547,38920.0,38916.0,0.003]
[1646675393229,0.20653547,38920.0,38916.0,0.00324097]
[1646675393426,0.06105232,38919.0,38916.0,0.00324097]
[1646675393667,0.16695927,38918.0,38916.0,0.00024097]
[1646675393861,0.401781,38917.0,38916.0,0.00024097]
[1646675394163,0.401781,38917.0,38908.0,0.015]
[1646675394361,0.16895927,38918.0,38915.0,0.00024098]
[1646675394560,0.401781,38917.0,38915.0,0.00024098]
[1646675394762,0.401781,38916.0,38915.0,0.00024098]
[1646675395461,0.401781,38916.0,38911.0,0.002]
[1646675395661,1.280101,38916.0,38914.0,0.00024098]
[1646675395866,1.47050555,38915.0,38914.0,0.00024098]
[1646675396061,1.47050555,38915.0,38905.0,0.3411755]
[1646675396062,0.7869,38913.0,38905.0,0.3411755]
[1646675396262,0.401781,38910.0,38905.0,0.3411755]
[1646675397062,0.28482455,38915.0,38905.0,0.3411755]
[1646675397335,0.003,38915.0,38905.0,0.3411755]
[1646675397733,0.16413796,38915.0,38905.0,0.3411755]
[1646675398034,0.16413796,38915.0,38909.0,0.401781]
[1646675398231,0.0473,38919.0,38908.0,0.29710373]
[1646675398632,0.25088411,38921.0,38908.0,0.29710373]
[1646675399031,0.15771456,38919.0,38908.0,0.29710373]
[1646675399232,0.25088411,38921.0,38909.0,0.02577]
[1646675399233,0.2155019,38921.0,38909.0,0.02577]
[1646675399435,1.00811,38930.0,38910.0,0.064252]
[1646675399634,0.79974,38929.0,38910.0,0.064252]
[1646675399832,2.07412206,38927.0,38910.0,0.3]
[1646675400033,2.07412206,38927.0,38910.0,0.35]
[1646675400233,2.07412206,38927.0,38914.0,0.15988191]
[1646675400234,0.17889442,38922.0,38914.0,0.15988191]
[1646675400433,0.18960827,38921.0,38912.0,0.00027783]
[1646675401068,0.401781,38920.0,38912.0,0.00027783]
[1646675401468,0.4129666,38921.0,38911.0,0.12577]
[1646675401469,0.4129666,38921.0,38911.0,0.30848785]
[1646675401663,0.1728244,38915.0,38912.0,6.131e-05]
[1646675401863,0.16906798,38916.0,38912.0,0.10006131]
[1646675402064,0.16906798,38916.0,38913.0,0.05]
[1646675402269,0.16906798,38916.0,38912.0,6.131e-05]
[1646675402270,0.401781,38914.0,38912.0,6.131e-05]
[1646675402662,0.401781,38914.0,38899.0,0.3444]
[1646675402663,0.0473,38913.0,38900.0,0.3]
[1646675402866,0.22062947,38913.0,38902.0,0.064267]
[1646675403063,0.22062947,38913.0,38904.0,0.20931044]
[1646675403064,0.27136707,38910.0,38904.0,0.20931044]
[1646675403264,0.44853724,38910.0,38904.0,0.27357668]
[1646675403464,0.44853724,38910.0,38901.0,0.12853105]
[1646675403862,0.17717017,38910.0,38905.0,0.42986801]
[1646675404464,0.17917017,38910.0,38905.0,0.42986801]
[1646675405311,0.17917017,38910.0,38906.0,0.00027759]
[1646675405512,0.17916981,38910.0,38906.0,0.00027759]
[1646675405712,0.01285,38920.0,38907.0,0.451781]
[1646675405916,2.17550925,38927.0,38906.0,0.10027759]
[1646675405917,0.01284,38926.0,38906.0,0.10027759]
[1646675406112,0.07286285,38916.0,38906.0,0.00027759]
[1646675406320,0.701781,38915.0,38906.0,0.00027759]
[1646675406512,0.701781,38915.0,38910.0,0.00027757]
[1646675406513,0.401781,38915.0,38910.0,0.00027757]
[1646675406712,0.701781,38915.0,38910.0,0.00027757]
[1646675406912,0.401781,38913.0,38910.0,0.00027757]
[1646675407612,0.701781,38913.0,38905.0,0.3411755]
[1646675407816,0.7869,38911.0,38910.0,0.00027757]
[1646675408013,1.685981,38911.0,38910.0,7.57e-06]
[1646675408212,1.835981,38911.0,38910.0,7.57e-06]
[1646675408416,1.91953109,38911.0,38910.0,7.57e-06]
[1646675408876,0.401781,38909.0,38905.0,0.3411755]
[1646675409072,0.17963161,38906.0,38905.0,0.3411755]
[1646675409274,0.23806661,38906.0,38905.0,0.3411755]
[1646675409875,0.058435,38906.0,38905.0,0.3411755]
[1646675410575,0.401781,38906.0,38905.0,0.3411755]
[1646675410781,0.9267,38920.0,38905.0,0.3911755]
[1646675410782,0.401781,38915.0,38905.0,0.3911755]
[1646675410976,0.401781,38915.0,38909.0,0.20235038]
[1646675412179,0.19641538,38917.0,38909.0,0.20235038]
[1646675412413,0.19641538,38917.0,38909.0,0.20170584]
[1646675412414,0.002,38915.0,38909.0,0.20170584]
[1646675413014,0.002,38915.0,38910.0,0.3]
[1646675413216,0.002,38915.0,38911.0,0.451781]
[1646675413414,0.002,38915.0,38912.0,0.06759978]
[1646675413614,0.015,38921.0,38912.0,0.06759978]
[1646675413814,0.015,38921.0,38911.0,0.39042776]
[1646675414018,0.015,38921.0,38913.0,0.401781]
[1646675414215,0.015,38921.0,38914.0,0.47577]
[1646675414417,0.015,38921.0,38915.0,0.427551]
[1646675414616,0.015,38921.0,38919.0,0.02577]
[1646675414815,0.1998,38935.0,38928.0,0.06441572]
[1646675415027,0.0011,38936.0,38929.0,0.8931471]
[1646675415217,0.0011,38936.0,38930.0,0.1]
[1646675415414,0.0011,38936.0,38931.0,0.3]
[1646675415618,0.0011,38936.0,38932.0,0.401781]
[1646675416468,0.00137699,38936.0,38932.0,0.401781]
[1646675416669,0.00137699,38936.0,38935.0,0.16036731]
[1646675417068,0.00137699,38936.0,38931.0,0.01284]
[1646675417368,0.47963674,38935.0,38931.0,0.01284]
[1646675417570,0.47963674,38935.0,38921.0,0.02999999]
[1646675417968,0.47963674,38935.0,38922.0,0.427551]
[1646675418166,0.69637157,38935.0,38927.0,0.15436285]
[1646675418367,0.2016884,38935.0,38928.0,0.401781]
[1646675418571,0.0011,38936.0,38929.0,0.401781]
[1646675418869,0.00026579,38930.0,38929.0,0.401781]
[1646675419068,0.00026579,38930.0,38929.0,0.440391]
[1646675419466,0.0033,38939.0,38938.0,0.0092576]
[1646675419813,0.405081,38939.0,38938.0,0.0092576]
[1646675420413,0.0033,38939.0,38938.0,0.0092576]
[1646675420612,0.0033,38939.0,38938.0,0.67054578]
[1646675421612,0.405081,38939.0,38938.0,0.67054578]
[1646675422512,0.404081,38939.0,38938.0,0.67054578]
[1646675423315,0.004,38939.0,38938.0,0.67054578]
[1646675423760,0.00355748,38940.0,38938.0,0.64554578]
[1646675423963,0.02462223,38945.0,38941.0,1.45]
[1646675424270,0.0022,38954.0,38951.0,0.15482997]
[1646675424467,0.0076,38954.0,38952.0,0.70174]
[1646675424659,0.0076,38954.0,38952.0,0.50353]
[1646675424858,0.0076,38954.0,38952.0,0.07602]
[1646675425059,0.0076,38954.0,38953.0,0.40174]
[1646675425258,0.0076,38954.0,38953.0,0.401654]
[1646675425460,0.0011,38957.0,38953.0,1.75]
[1646675425661,0.130563,38968.0,38957.0,1.47577]
[1646675425669,0.00220836,38967.0,38957.0,1.47577]
[1646675425865,0.00152575,38967.0,38958.0,1.024724]
[1646675426062,0.0022,38974.0,38961.0,0.42430055]
[1646675426263,0.0022,38974.0,38964.0,0.401654]
[1646675426460,0.18851732,38973.0,38968.0,0.401654]
[1646675426661,0.18851732,38973.0,38969.0,0.3]
[1646675426861,0.41045065,38973.0,38970.0,0.401654]
[1646675427168,0.41045065,38973.0,38965.0,0.25259758]
[1646675427169,0.41045065,38973.0,38965.0,0.12833901]
[1646675427417,0.00213762,38971.0,38964.0,0.01282]
[1646675427621,0.41045065,38973.0,38965.0,0.401552]
[1646675427622,0.065262,38972.0,38965.0,0.401552]
[1646675427817,0.2749773,38972.0,38966.0,0.3]
[1646675428015,0.2749773,38972.0,38967.0,0.401552]
[1646675428016,0.065262,38972.0,38967.0,0.401552]
[1646675428216,0.0011,38972.0,38968.0,0.2741]
[1646675428416,0.0011,38975.0,38970.0,1.45]
[1646675428621,0.0011,38975.0,38971.0,0.88623034]
[1646675428820,0.00221174,38976.0,38971.0,1.11319275]
[1646675429018,0.004,38986.0,38971.0,1.11319275]
[1646675429019,0.1039,38986.0,38978.0,0.1911658]
[1646675429219,0.0539,38986.0,38980.0,0.02577]
[1646675429519,0.45715793,38997.0,38982.0,1.45]
[1646675429520,0.00285793,38997.0,38982.0,1.45]
[1646675429722,0.064126,38996.0,38984.0,0.064125]
[1646675429934,6.51e-06,38987.0,38985.0,0.761662]
[1646675430119,6.51e-06,38987.0,38986.0,0.82351438]
[1646675430318,6.51e-06,38987.0,38986.0,1.10386438]
[1646675430718,0.02799667,38996.0,38989.0,0.064106]
[1646675430918,0.02799667,38996.0,38992.0,0.401552]
[1646675431172,0.02799667,38996.0,38994.0,0.401552]
[1646675431372,0.05,39000.0,38995.0,1.46281]
[1646675431572,0.05,39000.0,38996.0,0.701414]
[1646675431769,0.064115,38999.0,38997.0,0.0473]
[1646675432168,0.064115,38999.0,38995.0,0.05]
[1646675432376,0.19236319,38996.0,38989.0,0.06011]
[1646675432573,0.19236319,38996.0,38979.0,0.22343829]
[1646675432574,0.01713762,38990.0,38984.0,0.01281]
[1646675432769,0.01713762,38990.0,38981.0,0.0623]
[1646675432770,0.20905546,38988.0,38982.0,0.0473]
[1646675432973,0.19236319,38996.0,38983.0,0.401414]
[1646675433169,0.19236319,38996.0,38981.0,0.015]
[1646675433170,0.05,38987.0,38981.0,0.015]
[1646675433368,0.01713762,38993.0,38981.0,0.015]
[1646675433369,0.2258596,38988.0,38981.0,0.015]
[1646675433570,0.451414,38987.0,38981.0,0.015]
[1646675433770,0.3453188,38987.0,38981.0,0.015]
[1646675433970,0.17609267,38984.0,38981.0,0.015]
[1646675434171,0.01713762,38982.0,38981.0,0.015]
[1646675434373,1.45,38981.0,38970.0,0.19578255]
[1646675434575,0.22357831,38976.0,38970.0,0.00027904]
[1646675434816,0.1999,38982.0,38971.0,0.46557673]
[1646675435022,0.1999,38982.0,38975.0,0.401414]
[1646675435219,0.05,38982.0,38975.0,0.401414]
[1646675435419,0.05,38982.0,38974.0,0.064145]
[1646675435618,0.1921426,38975.0,38972.0,0.20831351]
[1646675435818,0.18292073,38973.0,38972.0,0.19550351]
[1646675436017,0.18292073,38973.0,38970.0,0.00027902]
[1646675436417,0.13130462,38974.0,38970.0,0.00027902]
[1646675436418,0.114167,38974.0,38970.0,0.00027902]
[1646675436618,0.114167,38974.0,38970.0,0.00026804]
[1646675436816,0.03385765,38973.0,38970.0,0.00026804]
[1646675437016,0.114167,38974.0,38970.0,0.00026804]
[1646675437216,0.02747887,38973.0,38970.0,0.00026804]
[1646675437516,0.114167,38974.0,38970.0,0.40168204]
[1646675437723,0.05,38974.0,38970.0,0.401414]
[1646675437919,0.05,38974.0,38970.0,0.00026804]
[1646675437920,0.02790087,38972.0,38970.0,0.00026804]
[1646675438119,0.02637381,38971.0,38970.0,0.00026804]
[1646675438322,0.2498,38974.0,38970.0,0.40168204]
[1646675438559,0.2498,38974.0,38970.0,0.00026804]
[1646675438759,0.2498,38974.0,38971.0,0.401414]
[1646675438959,0.52021325,38974.0,38970.0,0.06416011]
[1646675439160,0.52021325,38974.0,38970.0,0.00026803]
[1646675439161,0.01713762,38972.0,38970.0,0.00026803]
[1646675439360,0.401414,38971.0,38970.0,0.00026803]
[1646675439962,0.72157129,38971.0,38970.0,0.00026803]
[1646675440166,1.41096495,38971.0,38958.0,0.01282]
[1646675440368,0.01713762,38959.0,38957.0,0.44550351]
[1646675440565,0.01713762,38959.0,38940.0,0.1249]
[1646675440566,0.448714,38958.0,38947.0,0.19550351]
[1646675440770,0.448714,38958.0,38944.0,0.22361543]
[1646675440771,0.401414,38949.0,38944.0,0.22361543]
[1646675440962,0.0473,38952.0,38951.0,0.28047996]
[1646675441167,0.46508087,38952.0,38951.0,0.28047996]
[1646675441369,0.04719082,38952.0,38951.0,0.28047996]
[1646675441569,0.04719082,38952.0,38951.0,0.68217196]
[1646675441964,0.05,38958.0,38951.0,0.68217196]
[1646675441965,0.0973,38958.0,38951.0,0.68217196]
[1646675442166,0.27379978,38958.0,38951.0,0.28047996]
[1646675442417,0.27379978,38958.0,38953.0,0.15621911]
[1646675442615,0.0973,38958.0,38953.0,0.20621911]
[1646675442820,0.0973,38958.0,38954.0,0.401292]
[1646675443518,0.0973,38958.0,38951.0,0.28047996]
[1646675443720,0.05,38958.0,38952.0,0.05]
[1646675443925,0.02827362,38956.0,38954.0,0.00027885]
[1646675444121,0.10357737,38955.0,38954.0,0.00027885]
[1646675444321,1.52309784,38954.0,38951.0,0.27075881]
[1646675444525,1.26832767,38952.0,38951.0,0.27075881]
[1646675444721,1.40329223,38952.0,38951.0,0.27075881]
[1646675444921,1.4683429,38952.0,38951.0,0.27075881]
[1646675445319,0.064218,38948.0,38938.0,0.64554578]
[1646675445523,2.16267,38951.0,38938.0,0.64554578]
[1646675445524,0.19772953,38944.0,38938.0,0.64554578]
[1646675446060,0.0473,38944.0,38938.0,0.69554578]
[1646675446260,0.0473,38944.0,38939.0,0.12842381]
[1646675446462,0.0473,38944.0,38942.0,0.15732952]
[1646675447062,0.0473,38944.0,38940.0,0.05]
[1646675447262,0.401646,38943.0,38940.0,0.05]
[1646675447462,0.04718897,38944.0,38941.0,0.12842804]
[1646675447862,0.04718897,38944.0,38943.0,0.064214]
[1646675448464,0.1998,38951.0,38943.0,0.46586]
[1646675448668,0.1998,38951.0,38946.0,0.15]
[1646675448863,0.0999,38972.0,38952.0,0.66358]
[1646675449065,0.0999,38972.0,38967.0,0.401646]
[1646675449265,0.0999,38972.0,38967.0,0.473306]
[1646675449464,0.03362176,38978.0,38977.0,0.20258667]
[1646675449667,0.401646,38978.0,38977.0,0.26403667]
[1646675449930,0.40153368,38982.0,38978.0,0.064155]
[1646675450127,0.17927932,38981.0,38978.0,0.064155]
[1646675450325,0.29318609,38983.0,38978.0,0.064155]
[1646675450526,0.21639858,38984.0,38978.0,0.064155]
[1646675450733,0.43127323,38983.0,38978.0,0.064155]
[1646675450925,0.43127323,38983.0,38979.0,0.401439]
[1646675450926,0.03109916,38982.0,38979.0,0.401439]
[1646675451128,0.04722167,38983.0,38979.0,0.45983998]
[1646675451329,0.04722167,38983.0,38980.0,0.17957717]
[1646675451531,0.0011,38990.0,38983.0,0.064133]
[1646675451729,0.0011,38990.0,38984.0,0.701439]
[1646675451925,0.0011,38990.0,38984.0,0.751439]
[1646675452125,0.0011,38990.0,38984.0,0.401439]
[1646675452527,0.0011,38991.0,38984.0,0.401439]
[1646675452727,0.17638572,38992.0,38985.0,0.06413]
[1646675452927,0.20441107,38992.0,38985.0,0.06413]
[1646675453126,0.20441107,38992.0,38986.0,0.26495904]
[1646675453333,0.20441107,38992.0,38986.0,0.064134]
[1646675453334,0.17638572,38992.0,38986.0,0.064134]
[1646675453773,0.00027867,38990.0,38988.0,0.064132]
[1646675454573,0.17638572,38992.0,38988.0,0.064132]
[1646675454773,0.00027867,38991.0,38988.0,0.064132]
[1646675455178,0.00221452,38997.0,38989.0,1.7]
[1646675455376,0.00221452,38997.0,38992.0,0.401439]
[1646675455574,0.00221452,38997.0,38994.0,0.401439]
[1646675455777,0.00221452,38997.0,38993.0,0.05]
[1646675455778,0.056375,38995.0,38993.0,0.05]
[1646675455976,0.056375,38995.0,38992.0,0.01281]
[1646675456174,0.056375,38995.0,38991.0,0.064109]
[1646675456375,0.08579209,38995.0,38983.0,0.192393]
[1646675456574,0.19153071,38988.0,38986.0,0.064148]
[1646675456774,0.23251952,38994.0,38986.0,0.064148]
[1646675456775,0.3,38993.0,38986.0,0.064148]
[1646675456974,0.0011,38997.0,38986.0,0.064148]
[1646675457176,0.0011,38997.0,38987.0,0.401439]
[1646675457420,0.0011,38997.0,38989.0,0.401439]
[1646675457819,0.0011,38997.0,38992.0,0.21373644]
[1646675458119,0.0011,38997.0,38988.0,0.14104963]
[1646675458320,0.0011,38997.0,38993.0,0.128253]
[1646675458522,0.27981494,38995.0,38993.0,0.128253]
[1646675459120,0.401439,38994.0,38993.0,0.128253]
[1646675459319,0.7869,38993.0,38987.0,0.003]
[1646675459520,0.3,38992.0,38987.0,0.003]
[1646675459919,0.49317124,38995.0,38977.0,0.20286545]
[1646675459920,0.3,38994.0,38977.0,0.20286545]
[1646675460120,0.23402708,38989.0,38977.0,0.20286545]
[1646675460329,0.23402708,38989.0,38983.0,0.401439]
[1646675460520,0.3,38993.0,38987.0,0.401439]
[1646675460721,0.2133563,38995.0,38988.0,0.19071396]
[1646675460921,0.401439,38993.0,38989.0,0.064136]
[1646675461178,0.401439,38993.0,38986.0,0.128285]
[1646675461179,0.00027865,38993.0,38986.0,0.128285]
[1646675461390,0.9369,38987.0,38967.0,0.4872]
[1646675461584,0.02577,38991.0,38965.0,0.18]
[1646675461585,0.98857593,38985.0,38976.0,0.25]
[1646675461777,0.103675,38984.0,38976.0,0.25]
[1646675461975,0.16800373,38981.0,38977.0,0.20258667]
[1646675462177,0.64271956,38980.0,38977.0,0.26701439]
[1646675462375,0.59541956,38980.0,38977.0,0.26701439]
[1646675462578,0.59541956,38980.0,38977.0,0.20285439]
[1646675462780,0.64271956,38980.0,38977.0,0.20285439]
[1646675463577,0.17872461,38978.0,38977.0,0.20285439]
[1646675463782,0.23509961,38978.0,38977.0,0.20258667]
[1646675463976,0.28239961,38978.0,38977.0,0.20258667]
[1646675464579,0.103675,38978.0,38977.0,0.20258667]
[1646675466218,0.0473,38978.0,38977.0,0.20258667]
[1646675466422,0.228322,38992.0,38979.0,1.45]
[1646675466624,0.00024865,38993.0,38980.0,0.94422145]
[1646675466820,0.00024865,38993.0,38980.0,1.077379]
[1646675467018,0.00024865,38993.0,38981.0,0.01281]
[1646675467220,0.00024865,38993.0,38990.0,0.21672369]
[1646675467419,0.00024865,38993.0,38992.0,0.401439]
[1646675467624,0.00024865,38993.0,38989.0,0.128251]
[1646675468323,0.20108833,38988.0,38980.0,0.05]
[1646675468572,0.7869,38990.0,38981.0,0.465581]
[1646675468765,0.7869,38990.0,38982.0,0.12829]
[1646675468967,0.7869,38990.0,38983.0,0.401439]
[1646675469163,0.7869,38990.0,38982.0,0.12829]
[1646675469365,0.20004,38992.0,38984.0,0.06413701]
[1646675469567,0.004,38993.0,38986.0,0.27024148]
[1646675469766,0.21790587,38996.0,38986.0,0.27024148]